lending/lending_fUSD_20241229
["ID","MTS","AMOUNT","RATE_DAILY","PERIOD"]
[347088973,1735492261298,-500.0,0.00013453,2]
[347088974,1735492261308,-500.0,0.00013453,2]
[347088975,1735492261318,-500.0,0.00013453,2]
[347088976,1735492261328,-500.0,0.00013453,2]
[347088977,1735492261337,-154.887694,0.00013453,2]
[347088978,1735492261347,-500.0,0.00013453,2]
[347088979,1735492261356,-1474.73,0.00013453,2]
[347088980,1735492261366,-500.0,0.00013453,2]
[347088981,1735492261375,-907.52,0.00013453,2]
[347088982,1735492261384,-500.0,0.00013453,2]
[347088983,1735492261394,-513.3,0.00013453,2]
[347088984,1735492261406,-500.0,0.00013453,2]
[347088985,1735492261416,-678.69,0.00013453,2]
[347088986,1735492261426,-500.0,0.00013453,2]
[347088987,1735492261435,-981.1,0.00013453,2]
[347088988,1735492261445,-948.08,0.00013453,2]
[347088989,1735492261455,-500.0,0.00013453,2]
[347088990,1735492261465,-500.0,0.00013453,2]
[347088991,1735492261474,-6010.99,0.00013453,2]
[347088992,1735492261484,-500.0,0.00013454,2]
[347088993,1735492261494,-559.66,0.00013454,2]
[347088994,1735492261504,-181.72,0.00013454,2]
[347088995,1735492261514,-458.62696635,0.00013454,2]
[347088996,1735492261524,-1301.93,0.00013454,2]
[347088997,1735492261534,-428.12,0.00013454,2]
[347088998,1735492261544,-500.0,0.00013454,2]
[347088999,1735492261554,-512.72,0.00013454,2]
[347089000,1735492261563,-500.0,0.00013454,2]
[347089001,1735492261573,-500.0,0.00013454,2]
[347089002,1735492261583,-500.0,0.00013454,2]
[347089003,1735492261596,-377.98694454,0.00013454,2]
[347089004,1735492261606,-500.0,0.00013454,2]
[347089005,1735492261615,-500.0,0.00013454,2]
[347089006,1735492261625,-500.0,0.00013454,2]
[347089007,1735492261635,-500.0,0.00013454,2]
[347089008,1735492261644,-500.0,0.00013454,2]
[347089009,1735492261654,-522.92,0.00013454,2]
[347089010,1735492261664,-500.0,0.00013454,2]
[347089011,1735492261674,-500.0,0.00013454,2]
[347089012,1735492261684,-500.0,0.00013454,2]
[347089013,1735492261694,-507.7,0.00013454,2]
[347089014,1735492261704,-500.0,0.00013454,2]
[347089015,1735492261714,-525.76,0.00013454,2]
[347089016,1735492261723,-500.0,0.00013454,2]
[347089017,1735492261733,-500.0,0.00013454,2]
[347089018,1735492261743,-196.2,0.00013454,2]
[347089019,1735492261752,-602.95,0.00013454,2]
[347089020,1735492261762,-500.0,0.00013454,2]
[347089021,1735492261771,-500.0,0.00013454,2]
[347089022,1735492261781,-578.18,0.00013454,2]
[347089023,1735492261791,-259.04,0.00013454,2]
[347089024,1735492261801,-151.49,0.00013454,2]
[347089025,1735492261810,-994.13,0.00013454,2]
[347089026,1735492261821,-500.0,0.00013454,2]
[347089027,1735492261831,-571.16954843,0.00013454,2]
[347089028,1735492261840,-253.51,0.00013454,2]
[347089029,1735492261850,-500.0,0.00013454,2]
[347089030,1735492261860,-500.0,0.00013454,2]
[347089031,1735492261869,-500.0,0.00013454,2]
[347089032,1735492261879,-500.0,0.00013454,2]
[347089033,1735492261888,-500.0,0.00013454,2]
[347089034,1735492261897,-500.0,0.00013454,2]
[347089035,1735492261907,-500.0,0.00013454,2]
[347089036,1735492261916,-623.77,0.00013454,2]
[347089037,1735492261925,-896.87,0.00013454,2]
[347089038,1735492261934,-500.0,0.00013454,2]
[347089039,1735492261944,-500.0,0.00013454,2]
[347089040,1735492261953,-500.0,0.00013454,2]
[347089041,1735492261963,-581.65,0.00013454,2]
[347089042,1735492261972,-342.8,0.00013454,2]
[347089043,1735492261981,-2338.46,0.00013454,2]
[347089044,1735492261990,-588.63,0.00013454,2]
[347089045,1735492261999,-1526.23,0.00013454,2]
[347089046,1735492262009,-1150.05,0.00013454,2]
[347089047,1735492262018,-181.24,0.00013454,2]
[347089048,1735492262030,-500.0,0.00013454,2]
[347089049,1735492262039,-398.0,0.00013454,2]
[347089050,1735492262049,-500.0,0.00013454,2]
[347089051,1735492262060,-500.0,0.00013454,2]
[347089052,1735492262069,-500.0,0.00013455,2]
[347089053,1735492262079,-500.0,0.00013455,2]
[347089054,1735492262088,-500.0,0.00013455,2]
[347089055,1735492262098,-500.0,0.00013455,2]
[347089056,1735492262108,-500.0,0.00013455,2]
[347089057,1735492262117,-500.0,0.00013455,2]
[347089058,1735492262127,-500.0,0.00013455,2]
[347089059,1735492262136,-500.0,0.00013455,2]
[347089060,1735492262145,-446.77,0.00013455,2]
[347089061,1735492262155,-265.79,0.00013455,2]
[347089062,1735492262164,-500.0,0.00013455,2]
[347089063,1735492262174,-500.0,0.00013455,2]
[347089064,1735492262184,-500.0,0.00013455,2]
[347089065,1735492262193,-245.03,0.00013455,2]
[347089066,1735492262203,-500.0,0.00013455,2]
[347089067,1735492262212,-650.51,0.00013455,2]
[347089068,1735492262221,-500.0,0.00013455,2]
[347089069,1735492262232,-500.0,0.00013455,2]
[347089070,1735492262241,-500.0,0.00013455,2]
[347089071,1735492262252,-500.0,0.00013455,2]
[347089072,1735492262261,-1000.0,0.0001346,2]
[347089073,1735492262271,-150.0,0.00013561,2]
[347089074,1735492262280,-150.0,0.00013638,2]
[347089075,1735492262289,-150.0,0.00013681,2]
[347089076,1735492262299,-4000.0,0.00013699,2]
[347089077,1735492262308,-440.99,0.00013699,2]
[347089078,1735492262318,-500.0,0.00013699,2]
[347089079,1735492262328,-200.0,0.00013699,2]
[347089080,1735492262337,-823.77,0.00013727,2]
[347089081,1735492262347,-3884.19,0.00013727,2]
[347089082,1735492262356,-2947.67,0.00013727,2]
[347089083,1735492262365,-500.0,0.00013727,2]
[347089084,1735492262375,-894.1,0.00013727,2]
[347089085,1735492262385,-500.0,0.00013727,2]
[347089086,1735492262394,-1699.41,0.00013727,2]
[347089087,1735492262404,-500.0,0.00013727,2]
[347089088,1735492262413,-846.62,0.00013727,2]
[347089089,1735492262424,-518.89,0.00013727,2]
[347089090,1735492262436,-500.0,0.00013727,2]
[347089091,1735492262446,-356.73,0.00013727,2]
[347089092,1735492262456,-500.0,0.00013727,2]
[347089093,1735492262466,-500.0,0.00013727,2]
[347089094,1735492262475,-1058.51,0.00013727,2]
[347089095,1735492262484,-638.58,0.00013727,2]
[347089096,1735492262494,-3094.75,0.00013727,2]
[347089097,1735492262503,-567.57,0.00013727,2]
[347089098,1735492262515,-500.0,0.00013727,2]
[347089099,1735492262528,-500.0,0.00013727,2]
[347089100,1735492262537,-500.0,0.00013727,2]
[347089101,1735492262547,-882.64,0.00013727,2]
[347089102,1735492262557,-500.0,0.00013727,2]
[347089103,1735492262566,-500.0,0.00013727,2]
[347089104,1735492262577,-863.02,0.00013727,2]
[347089105,1735492262589,-500.0,0.00013727,2]
[347089106,1735492262599,-500.0,0.00013727,2]
[347089107,1735492262609,-698.08,0.00013727,2]
[347089108,1735492262619,-500.0,0.00013727,2]
[347089109,1735492262629,-500.0,0.00013727,2]
[347089110,1735492262638,-2036.77,0.00013727,2]
[347089111,1735492262649,-510.33,0.00013727,2]
[347089112,1735492262659,-500.0,0.00013727,2]
[347089113,1735492262670,-500.0,0.00013727,2]
[347089114,1735492262681,-689.34,0.00013727,2]
[347089115,1735492262691,-500.0,0.00013727,2]
[347089116,1735492262700,-715.59,0.00013727,2]
[347089117,1735492262711,-500.0,0.00013727,2]
[347089118,1735492262721,-500.0,0.00013727,2]
[347089119,1735492262731,-2541.75,0.00013727,2]
[347089120,1735492262741,-830.18,0.00013727,2]
[347089121,1735492262752,-500.0,0.00013727,2]
[347089122,1735492262762,-500.0,0.00013727,2]
[347089123,1735492262773,-414.50532955,0.00013727,2]
[347089124,1735492262784,-344.2,0.00013727,2]
[347089125,1735492262794,-500.0,0.00013727,2]
[347089126,1735492262805,-154.887694,0.00013727,2]
[347089127,1735492262816,-500.0,0.00013727,2]
[347089128,1735492262826,-1474.73,0.00013727,2]
[347089129,1735492262836,-500.0,0.00013727,2]
[347089130,1735492262846,-907.52,0.00013727,2]
[347089131,1735492262855,-500.0,0.00013727,2]
[347089132,1735492262866,-513.3,0.00013727,2]
[347089133,1735492262876,-500.0,0.00013727,2]
[347089134,1735492262886,-678.69,0.00013727,2]
[347089135,1735492262896,-500.0,0.00013727,2]
[347089136,1735492262906,-981.1,0.00013727,2]
[347089137,1735492262916,-948.08,0.00013727,2]
[347089138,1735492262925,-500.0,0.00013727,2]
[347089139,1735492262935,-500.0,0.00013727,2]
[347089140,1735492262945,-6010.99,0.00013727,2]
[347089141,1735492262955,-500.0,0.00013728,2]
[347089142,1735492262964,-1301.93,0.00013728,2]
[347089143,1735492262974,-489.88,0.00013728,2]
[347089144,1735492262985,-512.72,0.00013728,2]
[347089145,1735492262995,-500.0,0.00013728,2]
[347089146,1735492263004,-232.36,0.00013728,2]
[347089147,1735492263013,-500.0,0.00013728,2]
[347089148,1735492263025,-500.0,0.00013728,2]
[347089149,1735492263035,-500.0,0.00013728,2]
[347089150,1735492263045,-500.0,0.00013728,2]
[347089151,1735492263055,-500.0,0.00013728,2]
[347089152,1735492263064,-500.0,0.00013728,2]
[347089153,1735492263074,-500.0,0.00013728,2]
[347089154,1735492263084,-500.0,0.00013728,2]
[347089155,1735492263094,-500.0,0.00013728,2]
[347089156,1735492263103,-507.7,0.00013728,2]
[347089157,1735492263114,-500.0,0.00013728,2]
[347089158,1735492263124,-458.51,0.00013728,2]
[347089159,1735492263134,-500.0,0.00013728,2]
[347089160,1735492263144,-602.95,0.00013728,2]
[347089161,1735492263154,-500.0,0.00013728,2]
[347089162,1735492263164,-500.0,0.00013728,2]
[347089163,1735492263174,-578.18,0.00013728,2]
[347089164,1735492263184,-994.13,0.00013728,2]
[347089165,1735492263194,-500.0,0.00013728,2]
[347089166,1735492263204,-397.44,0.00013728,2]
[347089167,1735492263214,-500.0,0.00013728,2]
[347089168,1735492263225,-500.0,0.00013728,2]
[347089169,1735492263236,-500.0,0.00013728,2]
[347089170,1735492263246,-375.71,0.00013728,2]
[347089171,1735492263256,-500.0,0.00013728,2]
[347089172,1735492263266,-500.0,0.00013728,2]
[347089173,1735492263286,-896.87,0.00013728,2]
[347089174,1735492263299,-500.0,0.00013728,2]
[347089175,1735492263311,-500.0,0.00013728,2]
[347089176,1735492263323,-500.0,0.00013728,2]
[347089177,1735492263334,-581.65,0.00013728,2]
[347089178,1735492263345,-2338.46,0.00013728,2]
[347089179,1735492263356,-1526.23,0.00013728,2]
[347089180,1735492263367,-1150.05,0.00013728,2]
[347089181,1735492263379,-500.0,0.00013728,2]
[347089182,1735492263390,-500.0,0.00013728,2]
[347089183,1735492263401,-500.0,0.00013728,2]
[347089184,1735492263411,-500.0,0.00013729,2]
[347089185,1735492263422,-500.0,0.00013729,2]
[347089186,1735492263433,-500.0,0.00013729,2]
[347089187,1735492263443,-500.0,0.00013729,2]
[347089188,1735492263454,-500.0,0.00013729,2]
[347089189,1735492263465,-500.0,0.00013729,2]
[347089190,1735492263476,-500.0,0.00013729,2]
[347089191,1735492263486,-500.0,0.00013729,2]
[347089192,1735492263496,-500.0,0.00013729,2]
[347089193,1735492263507,-500.0,0.00013729,2]
[347089194,1735492263518,-189.93,0.00013729,2]
[347089195,1735492263531,-604.69,0.00013729,2]
[347089196,1735492263541,-650.51,0.00013729,2]
[347089197,1735492263552,-217.97,0.00013729,2]
[347089198,1735492263563,-500.0,0.00013729,2]
[347089199,1735492263573,-177.89,0.00013729,2]
[347089200,1735492263583,-500.0,0.00013729,2]
[347089201,1735492263598,-150.0,0.00013748,2]
[347089202,1735492263608,-150.0,0.00013755,2]
[347089203,1735492263619,-368.09,0.00013782,2]
[347089204,1735492263631,-499.58,0.00013794,2]
[347089205,1735492263641,-150.0,0.00013812,2]
[347089206,1735492263652,-150.0,0.00013879,2]
[347089207,1735492263662,-1057.0,0.00013922,2]
[347089208,1735492263677,-833.0,0.00013983,2]
[347089209,1735492263687,-823.77,0.00014001,2]
[347089210,1735492263698,-3884.19,0.00014001,2]
[347089211,1735492263708,-2947.67,0.00014001,2]
[347089212,1735492263719,-500.0,0.00014001,2]
[347089213,1735492263731,-894.1,0.00014001,2]
[347089214,1735492263741,-150.0,0.00014001,2]
[347089215,1735492263751,-500.0,0.00014001,2]
[347089216,1735492263762,-1699.41,0.00014001,2]
[347089217,1735492263772,-500.0,0.00014001,2]
[347089218,1735492263783,-846.62,0.00014001,2]
[347089219,1735492263794,-518.89,0.00014001,2]
[347089220,1735492263805,-500.0,0.00014001,2]
[347089221,1735492263815,-244.82,0.00014001,2]
[347089222,1735492263826,-500.0,0.00014001,2]
[347089223,1735492263836,-1058.51,0.00014001,2]
[347089224,1735492263846,-638.58,0.00014001,2]
[347089225,1735492263857,-3094.75,0.00014001,2]
[347089226,1735492263868,-567.57,0.00014001,2]
[347089227,1735492263879,-500.0,0.00014001,2]
[347089228,1735492263889,-500.0,0.00014001,2]
[347089229,1735492263899,-500.0,0.00014001,2]
[347089230,1735492263909,-882.64,0.00014001,2]
[347089231,1735492263919,-500.0,0.00014001,2]
[347089232,1735492263929,-500.0,0.00014001,2]
[347089233,1735492263940,-863.02,0.00014001,2]
[347089234,1735492263950,-500.0,0.00014001,2]
[347089235,1735492263960,-500.0,0.00014001,2]
[347089236,1735492263970,-698.08,0.00014001,2]
[347089237,1735492263980,-500.0,0.00014001,2]
[347089238,1735492263991,-500.0,0.00014001,2]
[347089239,1735492264001,-2036.77,0.00014001,2]
[347089240,1735492264012,-510.33,0.00014001,2]
[347089241,1735492264023,-500.0,0.00014001,2]
[347089242,1735492264033,-689.34,0.00014001,2]
[347089243,1735492264043,-500.0,0.00014001,2]
[347089244,1735492264054,-500.0,0.00014001,2]
[347089245,1735492264064,-715.59,0.00014001,2]
[347089246,1735492264074,-500.0,0.00014001,2]
[347089247,1735492264084,-500.0,0.00014001,2]
[347089248,1735492264094,-2541.75,0.00014001,2]
[347089249,1735492264104,-830.18,0.00014001,2]
[347089250,1735492264115,-354.95941463,0.00014001,2]
[347089251,1735492264126,-500.0,0.00014001,2]
[347089252,1735492264137,-500.0,0.00014001,2]
[347089253,1735492264148,-154.887694,0.00014001,2]
[347089254,1735492264159,-500.0,0.00014001,2]
[347089255,1735492264169,-1474.73,0.00014001,2]
[347089256,1735492264180,-500.0,0.00014001,2]
[347089257,1735492264190,-907.52,0.00014001,2]
[347089258,1735492264200,-513.3,0.00014001,2]
[347089259,1735492264211,-500.0,0.00014001,2]
[347089260,1735492264222,-500.0,0.00014001,2]
[347089261,1735492264233,-678.69,0.00014001,2]
[347089262,1735492264243,-500.0,0.00014001,2]
[347089263,1735492264253,-981.1,0.00014001,2]
[347089264,1735492264263,-948.08,0.00014001,2]
[347089265,1735492264275,-500.0,0.00014001,2]
[347089266,1735492264286,-500.0,0.00014001,2]
[347089267,1735492264296,-358.35,0.00014002,2]
[347089268,1735492264306,-1301.93,0.00014002,2]
[347089269,1735492264317,-512.72,0.00014002,2]
[347089270,1735492264328,-500.0,0.00014002,2]
[347089271,1735492264338,-500.0,0.00014002,2]
[347089272,1735492264349,-366.68,0.00014002,2]
[347089273,1735492264359,-500.0,0.00014002,2]
[347089274,1735492264370,-500.0,0.00014002,2]
[347089275,1735492264381,-500.0,0.00014002,2]
[347089276,1735492264391,-500.0,0.00014002,2]
[347089277,1735492264401,-500.0,0.00014002,2]
[347089278,1735492264411,-500.0,0.00014002,2]
[347089279,1735492264422,-609.48,0.00014002,2]
[347089280,1735492264433,-507.7,0.00014002,2]
[347089281,1735492264444,-312.27,0.00014002,2]
[347089282,1735492264454,-497.58,0.00014002,2]
[347089283,1735492264464,-602.95,0.00014002,2]
[347089284,1735492264475,-500.0,0.00014002,2]
[347089285,1735492264485,-500.0,0.00014002,2]
[347089286,1735492264495,-578.18,0.00014002,2]
[347089287,1735492264506,-994.13,0.00014002,2]
[347089288,1735492264517,-500.0,0.00014002,2]
[347089289,1735492264528,-500.0,0.00014002,2]
[347089290,1735492264539,-500.0,0.00014002,2]
[347089291,1735492264549,-500.0,0.00014002,2]
[347089292,1735492264559,-293.25017107,0.00014002,2]
[347089293,1735492264570,-500.0,0.00014002,2]
[347089294,1735492264580,-896.87,0.00014002,2]
[347089295,1735492264594,-586.59,0.00014002,2]
[347089296,1735492264604,-486.98,0.00014002,2]
[347089297,1735492264615,-500.0,0.00014002,2]
[347089298,1735492264626,-581.65,0.00014002,2]
[347089299,1735492264638,-2338.46,0.00014002,2]
[347089300,1735492264649,-1526.23,0.00014002,2]
[347089301,1735492264661,-1150.05,0.00014002,2]
[347089302,1735492264671,-500.0,0.00014002,2]
[347089303,1735492264681,-500.0,0.00014002,2]
[347089304,1735492264692,-500.0,0.00014002,2]
[347089305,1735492264704,-500.0,0.00014003,2]
[347089306,1735492264715,-607.5,0.00014003,2]
[347089307,1735492264725,-500.0,0.00014003,2]
[347089308,1735492264735,-500.0,0.00014003,2]
[347089309,1735492264745,-620.77,0.00014003,2]
[347089310,1735492264755,-320.13633384,0.00014003,2]
[347089311,1735492264766,-500.0,0.00014003,2]
[347089312,1735492264777,-500.0,0.00014003,2]
[347089313,1735492264788,-500.0,0.00014003,2]
[347089314,1735492264798,-500.0,0.00014003,2]
[347089315,1735492264810,-650.51,0.00014003,2]
[347089316,1735492264821,-500.0,0.00014003,2]
[347089317,1735492264833,-500.0,0.00014003,2]
[347089318,1735492264844,-500.0,0.00014005,2]
[347089319,1735492264856,-150.0,0.00014066,2]
[347089320,1735492265087,-150.0,0.00014085,2]
[347089321,1735492265097,-150.0,0.00014179,2]
[347089322,1735492265107,-150.0,0.00014238,2]
[347089323,1735492265118,-150.0,0.00014255,2]
[347089324,1735492265128,-150.0,0.00014257,2]
[347089325,1735492265139,-500.0,0.00014261,2]
[347089326,1735492265149,-150.0,0.00014264,2]
[347089327,1735492265158,-150.0,0.00014266,2]
[347089328,1735492265168,-823.77,0.00014275,2]
[347089329,1735492265177,-3884.19,0.00014275,2]
[347089330,1735492265187,-2947.67,0.00014275,2]
[347089331,1735492265196,-500.0,0.00014275,2]
[347089332,1735492265207,-894.1,0.00014275,2]
[347089333,1735492265217,-500.0,0.00014275,2]
[347089334,1735492265226,-1699.41,0.00014275,2]
[347089335,1735492265236,-500.0,0.00014275,2]
[347089336,1735492265245,-846.62,0.00014275,2]
[347089337,1735492265255,-518.89,0.00014275,2]
[347089338,1735492265265,-500.0,0.00014275,2]
[347089339,1735492265276,-500.0,0.00014275,2]
[347089340,1735492265286,-1058.51,0.00014275,2]
[347089341,1735492265295,-638.58,0.00014275,2]
[347089342,1735492265305,-3094.75,0.00014275,2]
[347089343,1735492265315,-567.57,0.00014275,2]
[347089344,1735492265326,-500.0,0.00014275,2]
[347089345,1735492265336,-500.0,0.00014275,2]
[347089346,1735492265345,-500.0,0.00014275,2]
[347089347,1735492265355,-882.64,0.00014275,2]
[347089348,1735492265365,-500.0,0.00014275,2]
[347089349,1735492265375,-590.53196038,0.00014275,2]
[347089350,1735492265385,-863.02,0.00014275,2]
[347089351,1735492265395,-500.0,0.00014275,2]
[347089352,1735492265405,-316.25,0.00014275,2]
[347089353,1735492265415,-698.08,0.00014275,2]
[347089354,1735492265425,-500.0,0.00014275,2]
[347089355,1735492265435,-500.0,0.00014275,2]
[347089356,1735492265445,-2036.77,0.00014275,2]
[347089357,1735492265455,-510.33,0.00014275,2]
[347089358,1735492265465,-500.0,0.00014275,2]
[347089359,1735492265475,-689.34,0.00014275,2]
[347089360,1735492265485,-500.0,0.00014275,2]
[347089361,1735492265495,-500.0,0.00014275,2]
[347089362,1735492265504,-715.59,0.00014275,2]
[347089363,1735492265515,-500.0,0.00014275,2]
[347089364,1735492265528,-500.0,0.00014275,2]
[347089365,1735492265539,-2541.75,0.00014275,2]
[347089366,1735492265549,-830.18,0.00014275,2]
[347089367,1735492265561,-500.0,0.00014275,2]
[347089368,1735492265571,-500.0,0.00014275,2]
[347089369,1735492265581,-154.887694,0.00014275,2]
[347089370,1735492265593,-500.0,0.00014275,2]
[347089371,1735492265604,-1474.73,0.00014275,2]
[347089372,1735492265614,-500.0,0.00014275,2]
[347089373,1735492265625,-907.52,0.00014275,2]
[347089374,1735492265635,-513.3,0.00014275,2]
[347089375,1735492265646,-500.0,0.00014275,2]
[347089376,1735492265657,-273.28,0.00014275,2]
[347089377,1735492265667,-678.69,0.00014275,2]
[347089378,1735492265678,-981.1,0.00014275,2]
[347089379,1735492265688,-500.0,0.00014275,2]
[347089380,1735492265698,-948.08,0.00014275,2]
[347089381,1735492265708,-500.0,0.00014275,2]
[347089382,1735492265718,-466.4,0.00014275,2]
[347089383,1735492265728,-1301.93,0.00014276,2]
[347089384,1735492265737,-512.72,0.00014276,2]
[347089385,1735492265748,-500.0,0.00014276,2]
[347089386,1735492265758,-214.32,0.00014276,2]
[347089387,1735492265768,-500.0,0.00014276,2]
[347089388,1735492265779,-500.0,0.00014276,2]
[347089389,1735492265789,-500.0,0.00014276,2]
[347089390,1735492265799,-500.0,0.00014276,2]
[347089391,1735492265809,-454.68,0.00014276,2]
[347089392,1735492265819,-500.0,0.00014276,2]
[347089393,1735492265829,-507.7,0.00014276,2]
[347089394,1735492265838,-602.95,0.00014276,2]
[347089395,1735492265849,-500.0,0.00014276,2]
[347089396,1735492265858,-500.0,0.00014276,2]
[347089397,1735492265868,-578.18,0.00014276,2]
[347089398,1735492265878,-994.13,0.00014276,2]
[347089399,1735492265888,-489.12,0.00014276,2]
[347089400,1735492265898,-500.0,0.00014276,2]
[347089401,1735492265907,-500.0,0.00014276,2]
[347089402,1735492265916,-500.0,0.00014276,2]
[347089403,1735492265926,-289.38,0.00014276,2]
[347089404,1735492265935,-896.87,0.00014276,2]
[347089405,1735492265945,-500.0,0.00014276,2]
[347089406,1735492265955,-581.65,0.00014276,2]
[347089407,1735492265964,-2338.46,0.00014276,2]
[347089408,1735492265974,-1526.23,0.00014276,2]
[347089409,1735492265984,-1150.05,0.00014276,2]
[347089410,1735492265993,-500.0,0.00014276,2]
[347089411,1735492266003,-212.59,0.00014276,2]
[347089412,1735492266013,-500.0,0.00014276,2]
[347089413,1735492266022,-500.0,0.00014277,2]
[347089414,1735492266031,-500.0,0.00014277,2]
[347089415,1735492266041,-500.0,0.00014277,2]
[347089416,1735492266050,-500.0,0.00014277,2]
[347089417,1735492266060,-581.63,0.00014277,2]
[347089418,1735492266069,-500.0,0.00014277,2]
[347089419,1735492266079,-500.0,0.00014277,2]
[347089420,1735492266091,-650.51,0.00014277,2]
[347089421,1735492266100,-500.0,0.00014277,2]
[347089422,1735492266110,-500.0,0.00014277,2]
[347089423,1735492266120,-150.0,0.00014295,2]
[347089424,1735492266129,-150.0,0.00014307,2]
[347089425,1735492266138,-150.0,0.00014322,2]
[347089426,1735492266148,-150.0,0.00014354,2]
[347089427,1735492266157,-150.0,0.00014392,2]
[347089428,1735492266166,-500.0,0.00014438,2]
[347089430,1735492266175,-900.0,0.00014438,2]
[347089431,1735492266184,-150.0,0.00014456,2]
[347089432,1735492266193,-150.0,0.00014461,2]
[347089433,1735492266203,-150.0,0.00014513,2]
[347089434,1735492266212,-823.77,0.00014549,2]
[347089435,1735492266221,-3884.19,0.00014549,2]
[347089436,1735492266230,-2947.67,0.00014549,2]
[347089437,1735492266239,-500.0,0.00014549,2]
[347089438,1735492266248,-894.1,0.00014549,2]
[347089439,1735492266258,-500.0,0.00014549,2]
[347089440,1735492266267,-1699.41,0.00014549,2]
[347089441,1735492266278,-500.0,0.00014549,2]
[347089442,1735492266287,-846.62,0.00014549,2]
[347089443,1735492266297,-518.89,0.00014549,2]
[347089444,1735492266306,-500.0,0.00014549,2]
[347089445,1735492266316,-500.0,0.00014549,2]
[347089446,1735492266325,-1058.51,0.00014549,2]
[347089447,1735492266334,-638.58,0.00014549,2]
[347089448,1735492266344,-3094.75,0.00014549,2]
[347089449,1735492266353,-567.57,0.00014549,2]
[347089450,1735492266364,-500.0,0.00014549,2]
[347089451,1735492266373,-500.0,0.00014549,2]
[347089452,1735492266382,-500.0,0.00014549,2]
[347089453,1735492266392,-882.64,0.00014549,2]
[347089454,1735492266402,-500.0,0.00014549,2]
[347089455,1735492266412,-863.02,0.00014549,2]
[347089456,1735492266421,-500.0,0.00014549,2]
[347089457,1735492266431,-698.08,0.00014549,2]
[347089458,1735492266443,-500.0,0.00014549,2]
[347089459,1735492266453,-500.0,0.00014549,2]
[347089460,1735492266463,-2036.77,0.00014549,2]
[347089461,1735492266473,-510.33,0.00014549,2]
[347089462,1735492266483,-351.3868384,0.00014549,2]
[347089463,1735492266493,-689.34,0.00014549,2]
[347089464,1735492266502,-500.0,0.00014549,2]
[347089465,1735492266514,-500.0,0.00014549,2]
[347089466,1735492266524,-715.59,0.00014549,2]
[347089467,1735492266534,-500.0,0.00014549,2]
[347089468,1735492266543,-500.0,0.00014549,2]
[347089469,1735492266553,-2541.75,0.00014549,2]
[347089470,1735492266562,-830.18,0.00014549,2]
[347089471,1735492266572,-500.0,0.00014549,2]
[347089472,1735492266582,-500.0,0.00014549,2]
[347089473,1735492266594,-556.90935282,0.00014549,2]